[Event "Schack-SM 2024: Veteran-SM 65+"]
[Site "Fortnox Arena, Hejaregatan 5, Vaxjo, Sweden"]
[Date "2024.07.05"]
[Round "7.3"]
[White "Bohlin, Jan"]
[Black "Blomstrom, Lars"]
[Result "1-0"]
[TimeControl "90 minutes for 40 moves + 30 minutes for the rest of the game + 30 seconds per move from move one."]
[WhiteElo "1854"]
[BlackElo "2122"]

1. d4 {[%clk 01:30:55]} {[%emt 00:00:05]} Nf6 {[%clk 01:30:53]} {[%emt
00:00:07]} 2. c4 {[%clk 01:31:19]} {[%emt 00:00:06]} g6 {[%clk 01:31:19]}
{[%emt 00:00:04]} 3. Nc3 {[%clk 01:31:42]} {[%emt 00:00:07]} Bg7 {[%clk
01:31:45]} {[%emt 00:00:04]} 4. e4 {[%clk 01:32:03]} {[%emt 00:00:09]} d6
{[%clk 01:32:10]} {[%emt 00:00:05]} 5. Be2 {[%clk 01:31:38]} {[%emt 00:00:54]}
O-O {[%clk 01:32:34]} {[%emt 00:00:06]} 6. Bg5 {[%clk 01:32:04]} {[%emt
00:00:05]} c5 {[%clk 01:32:25]} {[%emt 00:00:39]} 7. d5 {[%clk 01:31:55]}
{[%emt 00:00:39]} h6 {[%clk 01:32:04]} {[%emt 00:00:51]} 8. Be3 {[%clk
01:32:16]} {[%emt 00:00:10]} e6 {[%clk 01:32:23]} {[%emt 00:00:11]} 9. dxe6
{[%clk 01:31:53]} {[%emt 00:00:52]} Bxe6 {[%clk 01:32:32]} {[%emt 00:00:21]} 10.
Qd2 {[%clk 01:31:48]} {[%emt 00:00:35]} Nc6 {[%clk 01:26:21]} {[%emt 00:06:40]}
11. Bxh6 {[%clk 01:26:20]} {[%emt 00:05:59]} Nd4 {[%clk 01:23:16]} {[%emt
00:03:35]} 12. Bxg7 {[%clk 01:24:16]} {[%emt 00:02:34]} Kxg7 {[%clk 01:23:41]}
{[%emt 00:00:04]} 13. Bd3 {[%clk 01:18:43]} {[%emt 00:06:03]} Qa5 {[%clk
01:07:08]} {[%emt 00:17:04]} 14. Nge2 {[%clk 01:11:05]} {[%emt 00:08:07]} Nb3
{[%clk 01:01:11]} {[%emt 00:06:28]} 15. axb3 {[%clk 01:09:40]} {[%emt
00:01:56]} Qxa1+ {[%clk 01:01:31]} {[%emt 00:00:08]} 16. Nc1 {[%clk 01:09:51]}
{[%emt 00:00:20]} Qa5 {[%clk 01:00:29]} {[%emt 00:01:32]} 17. O-O {[%clk
01:09:56]} {[%emt 00:00:25]} Nh7 {[%clk 00:48:18]} {[%emt 00:12:40]} 18. f4
{[%clk 01:08:02]} {[%emt 00:02:25]} f5 {[%clk 00:48:14]} {[%emt 00:00:33]} 19.
exf5 {[%clk 01:07:56]} {[%emt 00:00:38]} gxf5 {[%clk 00:48:12]} {[%emt
00:00:31]} 20. N1e2 {[%clk 01:04:23]} {[%emt 00:04:03]} Kh8 {[%clk 00:28:48]}
{[%emt 00:19:52]} 21. Qe3 {[%clk 01:00:06]} {[%emt 00:04:49]} Rae8 {[%clk
00:27:23]} {[%emt 00:01:55]} 22. Qh3 {[%clk 00:59:46]} {[%emt 00:00:51]} Qd8
{[%clk 00:25:26]} {[%emt 00:02:26]} 23. g4 {[%clk 00:49:00]} {[%emt 00:11:16]}
Qf6 {[%clk 00:18:24]} {[%emt 00:07:32]} 24. g5 {[%clk 00:47:12]} {[%emt
00:02:18]} Qg7 {[%clk 00:17:28]} {[%emt 00:01:23]} 25. Kh1 {[%clk 00:44:54]}
{[%emt 00:02:51]} Kg8 {[%clk 00:17:09]} {[%emt 00:00:48]} 26. Ng3 {[%emt
00:04:11]} Qg6 {[%clk 00:11:34]} {[%emt 00:06:03]} 27. Rg1 {[%clk 00:34:59]}
{[%emt 00:06:47]} Bd7 {[%clk 00:07:28]} {[%emt 00:04:35]} 28. Nd5 {[%clk
00:32:44]} {[%emt 00:02:45]} Rf7 {[%clk 00:06:15]} {[%emt 00:01:43]} 29. Nh5
{[%clk 00:21:54]} {[%emt 00:11:21]} Kf8 {[%clk 00:04:42]} {[%emt 00:01:59]} 30.
Qf3 {[%clk 00:17:56]} {[%emt 00:04:32]} Bc6 {[%clk 00:04:04]} {[%emt 00:01:09]}
31. Ng3 {[%clk 00:17:25]} {[%emt 00:01:01]} Nxg5 {[%clk 00:01:23]} {[%emt
00:03:11]} 32. fxg5 {[%clk 00:17:20]} {[%emt 00:00:34]} Qxg5 {[%clk 00:01:51]}
{[%emt 00:00:02]} 33. Nxf5 {[%clk 00:16:00]} {[%emt 00:01:50]} Qd2 {[%clk
00:02:19]} {[%emt 00:00:02]} 34. Qh3 {[%clk 00:15:31]} {[%emt 00:00:59]} 1-0

[Event "Schack-SM 2024: Veteran-SM 65+"]
[Site "Fortnox Arena, Hejaregatan 5, Vaxjo, Sweden"]
[Date "2024.07.05"]
[Round "7.4"]
[White "Dolata, Henryk"]
[Black "Lagerborg, Krister"]
[Result "1/2-1/2"]
[TimeControl "90 minutes for 40 moves + 30 minutes for the rest of the game + 30 seconds per move from move one."]
[WhiteElo "1989"]
[BlackElo "2091"]

1. c4 {[%clk 01:30:45]} {[%emt 00:00:14]} e5 {[%clk 01:30:54]} {[%emt
00:00:07]} 2. Nc3 {[%clk 01:31:04]} {[%emt 00:00:10]} d6 {[%clk 01:30:12]}
{[%emt 00:01:13]} 3. g3 {[%clk 01:31:14]} {[%emt 00:00:20]} g6 {[%clk
01:30:18]} {[%emt 00:00:24]} 4. Bg2 {[%clk 01:31:28]} {[%emt 00:00:16]} Bg7
{[%clk 01:30:26]} {[%emt 00:00:22]} 5. e4 {[%clk 01:31:34]} {[%emt 00:00:23]}
Nc6 {[%clk 01:29:00]} {[%emt 00:01:57]} 6. Nge2 {[%clk 01:31:25]} {[%emt
00:00:37]} Nge7 {[%clk 01:28:21]} {[%emt 00:01:10]} 7. O-O {[%clk 01:31:17]}
{[%emt 00:00:38]} O-O {[%clk 01:28:07]} {[%emt 00:00:44]} 8. d3 {[%clk
01:31:03]} {[%emt 00:00:44]} h6 {[%clk 01:24:45]} {[%emt 00:03:52]} 9. Be3
{[%clk 01:29:11]} {[%emt 00:02:22]} Nd4 {[%clk 01:23:51]} {[%emt 00:01:25]} 10.
Qd2 {[%clk 01:28:31]} {[%emt 00:01:10]} Kh7 {[%clk 01:23:59]} {[%emt 00:00:21]}
11. f4 {[%clk 01:27:41]} {[%emt 00:01:20]} Rb8 {[%clk 01:14:48]} {[%emt
00:09:41]} 12. Rac1 {[%clk 01:25:28]} {[%emt 00:02:43]} c5 {[%clk 01:11:52]}
{[%emt 00:03:26]} 13. fxe5 {[%clk 01:16:04]} {[%emt 00:09:53]} dxe5 {[%clk
01:11:47]} {[%emt 00:00:36]} 14. Nd5 {[%clk 01:15:46]} {[%emt 00:00:47]} Nxd5
{[%clk 01:10:47]} {[%emt 00:01:31]} 15. cxd5 {[%clk 01:15:53]} {[%emt
00:00:23]} Qd6 {[%clk 01:07:04]} {[%emt 00:04:13]} 16. h3 {[%clk 01:09:36]}
{[%emt 00:06:45]} f5 {[%clk 01:05:05]} {[%emt 00:02:30]} 17. Kh2 {[%clk
00:58:52]} {[%emt 00:11:15]} Bd7 {[%clk 01:02:38]} {[%emt 00:02:57]} 18. Nxd4
{[%clk 00:53:14]} {[%emt 00:06:08]} cxd4 {[%clk 01:02:31]} {[%emt 00:00:36]} 19.
Bg1 {[%clk 00:52:56]} {[%emt 00:00:47]} h5 {[%clk 00:55:53]} {[%emt 00:07:09]}
20. Qa5 {[%clk 00:51:02]} {[%emt 00:02:25]} Bh6 {[%clk 00:50:08]} {[%emt
00:06:14]} 21. Qc7 {[%clk 00:49:07]} {[%emt 00:02:24]} Qe7 {[%clk 00:49:44]}
{[%emt 00:00:55]} 22. Rce1 {[%clk 00:48:09]} {[%emt 00:01:27]} Bd2 {[%clk
00:43:30]} {[%emt 00:06:45]} 23. exf5 {[%clk 00:45:29]} {[%emt 00:03:11]} Bxe1
{[%clk 00:42:20]} {[%emt 00:01:39]} 24. fxg6+ {[%clk 00:45:25]} {[%emt
00:00:34]} Kxg6 {[%clk 00:38:29]} {[%emt 00:04:21]} 25. Rxe1 {[%clk 00:45:37]}
{[%emt 00:00:18]} Rfc8 {[%clk 00:31:05]} {[%emt 00:07:54]} 26. Rxe5 {[%clk
00:36:30]} {[%emt 00:09:38]} Rxc7 {[%clk 00:31:24]} {[%emt 00:00:11]} 27. Rxe7
{[%clk 00:36:50]} {[%emt 00:00:10]} Re8 {[%clk 00:31:23]} {[%emt 00:00:29]} 28.
Be4+ {[%clk 00:35:40]} {[%emt 00:01:41]} Kf6 {[%clk 00:28:38]} {[%emt
00:03:15]} 29. Rxe8 {[%clk 00:31:16]} {[%emt 00:04:53]} Rc2+ {[%clk 00:27:33]}
{[%emt 00:01:35]} 30. Bg2 {[%clk 00:30:02]} {[%emt 00:01:44]} Bxe8 {[%clk
00:27:44]} {[%emt 00:00:19]} 31. Bxd4+ {[%clk 00:30:31]} {[%emt 00:00:02]} Ke7
{[%clk 00:27:26]} {[%emt 00:00:47]} 32. Kg1 {[%clk 00:28:24]} {[%emt 00:02:37]}
b6 {[%clk 00:26:00]} {[%emt 00:01:56]} 33. g4 {[%clk 00:27:07]} {[%emt
00:01:48]} hxg4 {[%clk 00:22:40]} {[%emt 00:03:51]} 34. hxg4 {[%clk 00:27:35]}
Bg6 {[%clk 00:22:24]} {[%emt 00:00:46]} 35. Kh2 {[%clk 00:23:33]} {[%emt
00:04:32]} Rd2 {[%clk 00:21:51]} {[%emt 00:01:03]} 36. Bc3 {[%clk 00:23:12]}
{[%emt 00:00:52]} Rxd3 {[%clk 00:22:08]} {[%emt 00:00:12]} 37. Be5 {[%clk
00:18:36]} {[%emt 00:05:06]} Kd7 {[%clk 00:21:09]} {[%emt 00:01:29]} 38. d6
{[%clk 00:15:58]} {[%emt 00:03:08]} Rd2 {[%clk 00:17:40]} {[%emt 00:04:00]} 39.
Kg3 {[%clk 00:15:38]} {[%emt 00:00:49]} Ke6 {[%clk 00:17:46]} {[%emt 00:00:24]}
40. Bf4 {[%clk 00:12:15]} {[%emt 00:03:53]} Rxb2 {[%clk 00:17:38]} {[%emt
00:00:38]} 41. Bc6 {[%clk 00:12:25]} {[%emt 00:00:20]} Rc2 {[%clk 00:13:03]}
{[%emt 00:05:05]} 42. d7 {[%clk 00:11:21]} {[%emt 00:01:35]} Rc3+ {[%clk
00:13:03]} {[%emt 00:00:28]} 43. Kh4 {[%clk 00:11:28]} {[%emt 00:00:23]} Rd3
{[%clk 00:13:08]} {[%emt 00:00:25]} 44. Kg5 {[%clk 00:09:50]} {[%emt 00:02:08]}
Bf7 {[%clk 00:12:51]} {[%emt 00:00:46]} 45. Bb8 {[%clk 00:05:59]} {[%emt
00:04:23]} a6 {[%clk 00:08:38]} {[%emt 00:04:44]} 46. Bc7 {[%clk 00:04:33]}
{[%emt 00:01:55]} Rxd7 {[%clk 00:07:51]} {[%emt 00:01:17]} 47. Bxd7+ {[%clk
00:04:28]} {[%emt 00:00:34]} 1/2-1/2

[Event "Schack-SM 2024: Veteran-SM 65+"]
[Site "Fortnox Arena, Hejaregatan 5, Vaxjo, Sweden"]
[Date "2024.07.05"]
[Round "7.5"]
[White "Gromark, Per-Olof"]
[Black "Malmdin, Nils-Ake"]
[Result "1/2-1/2"]
[TimeControl "90 minutes for 40 moves + 30 minutes for the rest of the game + 30 seconds per move from move one."]
[BlackTitle "FM"]
[WhiteElo "1898"]
[BlackElo "2064"]

1. c4 {[%clk 01:30:54]} {[%emt 00:00:05]} c5 {[%clk 01:30:10]} {[%emt
00:00:50]} 2. Nc3 {[%clk 01:31:15]} {[%emt 00:00:10]} g6 {[%clk 01:30:01]}
{[%emt 00:00:37]} 3. g3 {[%clk 01:31:36]} {[%emt 00:00:09]} Bg7 {[%clk
01:30:18]} {[%emt 00:00:14]} 4. Bg2 {[%clk 01:32:05]} Nc6 {[%clk 01:30:13]}
{[%emt 00:00:35]} 5. e4 {[%clk 01:32:09]} {[%emt 00:00:28]} b6 {[%clk
01:29:46]} {[%emt 00:00:56]} 6. Nge2 {[%clk 01:31:50]} {[%emt 00:00:49]} Bb7
{[%clk 01:30:03]} {[%emt 00:00:13]} 7. d3 {[%clk 01:31:42]} {[%emt 00:00:38]}
d6 {[%clk 01:28:44]} {[%emt 00:01:49]} 8. Be3 {[%clk 01:29:34]} {[%emt
00:02:39]} Nf6 {[%clk 01:28:33]} {[%emt 00:00:41]} 9. h3 {[%clk 01:29:36]}
{[%emt 00:00:28]} Qd7 {[%clk 01:27:25]} {[%emt 00:01:37]} 10. Qd2 {[%clk
01:29:22]} {[%emt 00:00:45]} h5 {[%clk 01:26:58]} {[%emt 00:00:56]} 11. a3
{[%clk 01:25:57]} {[%emt 00:03:57]} Nh7 {[%clk 01:21:27]} {[%emt 00:05:59]} 12.
Rb1 {[%clk 01:22:38]} {[%emt 00:03:49]} e6 {[%clk 01:17:49]} {[%emt 00:04:07]}
13. Bf4 {[%clk 01:17:39]} {[%emt 00:05:30]} Ne5 {[%clk 01:11:55]} {[%emt
00:06:25]} 14. h4 {[%clk 01:07:50]} {[%emt 00:10:19]} O-O {[%clk 01:03:53]}
{[%emt 00:08:31]} 15. b3 {[%clk 01:05:51]} {[%emt 00:02:30]} f5 {[%clk
00:53:26]} {[%emt 00:10:56]} 16. O-O {[%clk 01:00:10]} {[%emt 00:06:12]} Nf7
{[%clk 00:48:41]} {[%emt 00:05:12]} 17. Be3 {[%clk 00:56:02]} {[%emt 00:04:40]}
Nf6 {[%clk 00:46:08]} {[%emt 00:03:03]} 18. Nf4 {[%clk 00:45:01]} {[%emt
00:11:32]} Kh7 {[%clk 00:37:09]} {[%emt 00:09:28]} 19. exf5 {[%clk 00:35:50]}
{[%emt 00:09:42]} exf5 {[%clk 00:26:07]} {[%emt 00:11:31]} 20. Nfd5 {[%clk
00:32:57]} {[%emt 00:03:24]} Ng4 {[%clk 00:25:48]} {[%emt 00:00:48]} 21. Bf4
{[%clk 00:29:27]} {[%emt 00:04:00]} Rae8 {[%clk 00:25:20]} {[%emt 00:00:57]} 22.
Rbe1 {[%clk 00:28:37]} {[%emt 00:01:21]} Bd4 {[%clk 00:23:49]} {[%emt
00:02:01]} 23. Ne2 {[%clk 00:27:24]} {[%emt 00:01:43]} Bg7 {[%clk 00:23:12]}
{[%emt 00:01:06]} 24. Nec3 {[%clk 00:25:30]} {[%emt 00:02:25]} Bd4 {[%clk
00:23:10]} {[%emt 00:00:33]} 25. Ne2 {[%clk 00:25:26]} {[%emt 00:00:34]} Bg7
{[%clk 00:23:05]} {[%emt 00:00:32]} 26. Nec3 {[%clk 00:25:49]} {[%emt
00:00:09]} Bd4 {[%clk 00:23:12]} {[%emt 00:00:22]} 27. Ne2 {[%clk 00:26:12]}
{[%emt 00:00:08]} Bg7 {[%clk 00:23:30]} {[%emt 00:00:12]} 1/2-1/2

[Event "Schack-SM 2024: Veteran-SM 65+"]
[Site "Fortnox Arena, Hejaregatan 5, Vaxjo, Sweden"]
[Date "2024.07.05"]
[Round "7.6"]
[White "Green, Per"]
[Black "Magnussen, Pal"]
[Result "0-1"]
[TimeControl "90 minutes for 40 moves + 30 minutes for the rest of the game + 30 seconds per move from move one."]
[WhiteElo "1944"]
[BlackElo "1905"]

1. Nf3 {[%clk 01:30:39]} {[%emt 00:00:21]} Nf6 {[%clk 01:30:31]} {[%emt
00:00:29]} 2. g3 {[%clk 01:30:54]} {[%emt 00:00:15]} c5 {[%clk 01:30:01]}
{[%emt 00:01:01]} 3. Bg2 {[%clk 01:30:55]} {[%emt 00:00:29]} d5 {[%clk
01:29:14]} {[%emt 00:01:16]} 4. c4 {[%clk 01:29:54]} {[%emt 00:01:31]} Nc6
{[%clk 01:26:50]} {[%emt 00:02:55]} 5. cxd5 {[%clk 01:26:37]} {[%emt 00:03:47]}
Nxd5 {[%clk 01:26:57]} {[%emt 00:00:23]} 6. Nc3 {[%clk 01:26:43]} {[%emt
00:00:24]} Nxc3 {[%clk 01:25:21]} {[%emt 00:02:06]} 7. bxc3 {[%clk 01:26:42]}
{[%emt 00:00:30]} e5 {[%clk 01:25:13]} {[%emt 00:00:38]} 8. d3 {[%clk
01:24:16]} {[%emt 00:02:57]} Be7 {[%clk 01:22:22]} {[%emt 00:03:21]} 9. Be3
{[%clk 01:20:26]} {[%emt 00:04:19]} O-O {[%clk 01:20:48]} {[%emt 00:02:04]} 10.
O-O {[%clk 01:20:40]} {[%emt 00:00:16]} Qc7 {[%clk 01:19:28]} {[%emt 00:01:51]}
11. Qc1 {[%clk 01:18:08]} {[%emt 00:03:02]} h6 {[%clk 01:08:34]} {[%emt
00:11:24]} 12. Qb2 {[%clk 01:10:16]} {[%emt 00:08:21]} Rb8 {[%clk 01:02:51]}
{[%emt 00:06:14]} 13. Rac1 {[%clk 01:08:58]} {[%emt 00:01:48]} Be6 {[%clk
00:55:14]} {[%emt 00:08:07]} 14. Nd2 {[%clk 01:06:17]} {[%emt 00:03:11]} b5
{[%clk 00:41:52]} {[%emt 00:13:52]} 15. d4 {[%clk 01:03:21]} {[%emt 00:03:25]}
Rfd8 {[%clk 00:33:17]} {[%emt 00:09:06]} 16. dxc5 {[%clk 01:02:31]} {[%emt
00:01:19]} Na5 {[%clk 00:32:00]} {[%emt 00:01:49]} 17. Rfd1 {[%clk 00:50:27]}
{[%emt 00:12:33]} Bxc5 {[%clk 00:31:11]} {[%emt 00:01:19]} 18. Bxc5 {[%clk
00:48:19]} {[%emt 00:02:38]} Qxc5 {[%clk 00:31:16]} {[%emt 00:00:24]} 19. Qb4
{[%clk 00:40:34]} {[%emt 00:08:15]} Qc7 {[%clk 00:29:47]} {[%emt 00:02:00]} 20.
Nb3 {[%clk 00:39:48]} {[%emt 00:01:16]} Nc4 {[%clk 00:27:25]} {[%emt 00:02:52]}
21. Rxd8+ {[%clk 00:32:20]} {[%emt 00:07:59]} Qxd8 {[%clk 00:27:28]} {[%emt
00:00:27]} 22. Qc5 {[%clk 00:32:19]} {[%emt 00:00:31]} a5 {[%clk 00:26:59]}
{[%emt 00:00:59]} 23. Qc6 {[%clk 00:27:09]} {[%emt 00:05:39]} a4 {[%clk
00:22:11]} {[%emt 00:05:19]} 24. Nc5 {[%clk 00:27:24]} {[%emt 00:00:15]} Qd2
{[%clk 00:21:45]} {[%emt 00:00:56]} 25. Rf1 {[%clk 00:26:11]} {[%emt 00:01:42]}
Bg4 {[%clk 00:19:37]} {[%emt 00:02:38]} 26. Ne4 {[%clk 00:25:33]} {[%emt
00:01:09]} Qxe2 {[%clk 00:17:59]} {[%emt 00:02:08]} 27. h3 {[%clk 00:23:53]}
{[%emt 00:02:12]} Bf5 {[%clk 00:15:08]} {[%emt 00:03:18]} 28. Nd6 {[%clk
00:22:21]} {[%emt 00:02:02]} Nxd6 {[%clk 00:12:26]} {[%emt 00:03:12]} 29. Qxd6
{[%clk 00:18:10]} {[%emt 00:00:51]} Rc8 30. Rc1 {[%clk 00:17:58]} {[%emt
00:06:21]} Qb2 31. Re1 {[%clk 00:17:53]} {[%emt 00:01:35]} e4 32. Qe5 {[%emt
00:05:14]} Qd2 {[%emt 00:00:58]} 33. Re3 {[%emt 00:01:08]} Be6 {[%emt
00:00:35]} 34. Qxb5 {[%emt 00:00:43]} Qxa2 {[%emt 00:02:23]} 35. Qe5 {[%emt
00:00:56]} a3 {[%emt 00:00:20]} 36. Qxe4 {[%clk 00:14:41]} {[%emt 00:00:36]}
Qa1+ {[%clk 00:05:49]} 0-1

[Event "Schack-SM 2024: Veteran-SM 65+"]
[Site "Fortnox Arena, Hejaregatan 5, Vaxjo, Sweden"]
[Date "2024.07.05"]
[Round "7.7"]
[White "Larsson, Per-Olov"]
[Black "Adler, Bo"]
[Result "1-0"]
[TimeControl "90 minutes for 40 moves + 30 minutes for the rest of the game + 30 seconds per move from move one."]
[WhiteElo "1933"]
[BlackElo "2108"]

1. e4 {[%clk 01:30:50]} {[%emt 00:00:09]} e5 {[%clk 01:30:55]} {[%emt
00:00:06]} 2. Nf3 {[%clk 01:31:05]} {[%emt 00:00:13]} Nc6 {[%clk 01:31:20]}
{[%emt 00:00:07]} 3. Bb5 {[%clk 01:31:16]} {[%emt 00:00:18]} a6 {[%clk
01:31:29]} {[%emt 00:00:22]} 4. Ba4 {[%clk 01:31:20]} {[%emt 00:00:26]} d6
{[%clk 01:31:47]} {[%emt 00:00:12]} 5. O-O {[%clk 01:30:54]} {[%emt 00:00:55]}
Bg4 {[%clk 01:30:52]} {[%emt 00:01:24]} 6. c3 {[%clk 01:28:52]} {[%emt
00:02:33]} Qf6 {[%clk 01:29:55]} {[%emt 00:01:27]} 7. d3 {[%clk 01:28:10]}
{[%emt 00:01:13]} h6 {[%clk 01:28:15]} {[%emt 00:02:09]} 8. Nbd2 {[%clk
01:26:17]} {[%emt 00:02:21]} Nge7 {[%clk 01:28:35]} {[%emt 00:00:12]} 9. Qc2
{[%clk 01:22:30]} {[%emt 00:04:17]} Ng6 {[%clk 01:18:26]} {[%emt 00:10:40]} 10.
h3 {[%clk 01:11:06]} {[%emt 00:11:53]} Bd7 {[%clk 01:18:06]} {[%emt 00:00:50]}
11. Bxc6 {[%clk 01:07:42]} {[%emt 00:03:54]} Bxc6 {[%clk 01:15:19]} {[%emt
00:03:17]} 12. d4 {[%clk 01:07:14]} {[%emt 00:00:57]} Be7 {[%clk 01:12:10]}
{[%emt 00:03:40]} 13. Nc4 {[%clk 00:58:05]} {[%emt 00:09:39]} b6 {[%clk
01:06:45]} {[%emt 00:05:55]} 14. Ne3 {[%clk 00:53:15]} {[%emt 00:05:19]} O-O
{[%clk 00:49:16]} {[%emt 00:17:59]} 15. Ng4 {[%clk 00:52:02]} {[%emt 00:01:43]}
Qe6 {[%clk 00:49:40]} {[%emt 00:00:07]} 16. d5 {[%clk 00:52:13]} {[%emt
00:00:18]} Bxd5 {[%clk 00:50:06]} {[%emt 00:00:04]} 17. exd5 {[%clk 00:52:35]}
{[%emt 00:00:08]} Qxd5 {[%clk 00:50:34]} {[%emt 00:00:03]} 18. Ne3 {[%clk
00:50:05]} {[%emt 00:02:59]} Qc6 {[%clk 00:49:55]} {[%emt 00:01:10]} 19. Rd1
{[%clk 00:46:56]} {[%emt 00:03:39]} Nf4 {[%clk 00:47:43]} {[%emt 00:02:43]} 20.
Nf5 {[%clk 00:46:21]} {[%emt 00:01:05]} Ng6 {[%clk 00:46:14]} {[%emt 00:01:59]}
21. h4 {[%clk 00:36:17]} {[%emt 00:10:33]} Bf6 {[%clk 00:44:50]} {[%emt
00:01:54]} 22. h5 {[%clk 00:31:54]} {[%emt 00:04:53]} Ne7 {[%clk 00:45:01]}
{[%emt 00:00:19]} 23. Nxe7+ {[%clk 00:31:09]} {[%emt 00:01:16]} Bxe7 {[%clk
00:45:29]} {[%emt 00:00:01]} 24. Qf5 {[%clk 00:31:06]} {[%emt 00:00:31]} Rae8
{[%clk 00:42:26]} {[%emt 00:03:35]} 25. Nh2 {[%clk 00:29:12]} {[%emt 00:02:24]}
Bd8 {[%clk 00:41:00]} {[%emt 00:01:57]} 26. Ng4 {[%clk 00:26:05]} {[%emt
00:03:35]} Re6 {[%clk 00:39:47]} {[%emt 00:01:44]} 27. Rd3 {[%clk 00:25:14]}
{[%emt 00:01:20]} Qe8 {[%clk 00:39:48]} {[%emt 00:00:30]} 28. Rg3 {[%clk
00:24:18]} {[%emt 00:01:25]} Kh8 {[%clk 00:40:06]} {[%emt 00:00:13]} 29. Rf3
{[%clk 00:18:56]} {[%emt 00:05:52]} e4 {[%clk 00:26:53]} {[%emt 00:13:43]} 30.
Rh3 {[%clk 00:18:34]} {[%emt 00:00:51]} g6 {[%clk 00:27:11]} {[%emt 00:00:13]}
31. hxg6 {[%clk 00:17:43]} {[%emt 00:01:21]} fxg6 {[%clk 00:27:36]} {[%emt
00:00:06]} 32. Rxh6+ {[%clk 00:17:29]} {[%emt 00:00:43]} Kg7 {[%clk 00:27:55]}
{[%emt 00:00:11]} 33. Qd5 {[%clk 00:17:28]} {[%emt 00:00:30]} Rf5 {[%clk
00:27:58]} {[%emt 00:00:27]} 34. Qd4+ {[%clk 00:17:04]} {[%emt 00:00:54]} Bf6
{[%clk 00:27:51]} {[%emt 00:00:38]} 35. Nxf6 {[%clk 00:16:32]} {[%emt
00:01:01]} Rexf6 {[%clk 00:28:06]} {[%emt 00:00:15]} 36. Be3 {[%clk 00:12:03]}
{[%emt 00:05:00]} c5 {[%clk 00:26:13]} {[%emt 00:02:22]} 37. Qd2 {[%clk
00:12:04]} {[%emt 00:00:29]} Rh5 {[%clk 00:23:48]} {[%emt 00:02:56]} 38. Rxh5
{[%clk 00:11:26]} {[%emt 00:01:08]} gxh5 {[%clk 00:24:16]} {[%emt 00:00:01]} 39.
Bf4 {[%clk 00:08:41]} {[%emt 00:03:16]} Qe6 {[%clk 00:24:23]} {[%emt 00:00:22]}
40. g3 {[%clk 00:07:56]} {[%emt 00:01:16]} d5 {[%clk 00:22:17]} {[%emt
00:02:36]} 41. Rd1 {[%clk 00:07:11]} {[%emt 00:01:15]} Rf5 {[%clk 00:22:42]}
{[%emt 00:00:05]} 42. Qe3 {[%clk 00:06:57]} {[%emt 00:00:43]} h4 {[%clk
00:22:06]} {[%emt 00:01:06]} 43. b4 {[%clk 00:05:57]} {[%emt 00:01:31]} Qg6
{[%clk 00:21:21]} {[%emt 00:01:15]} 44. bxc5 {[%clk 00:03:17]} {[%emt
00:03:09]} bxc5 {[%clk 00:21:11]} {[%emt 00:00:41]} 45. Rb1 {[%clk 00:03:35]}
{[%emt 00:00:12]} Rf7 {[%clk 00:20:42]} {[%emt 00:01:00]} 46. Be5+ {[%clk
00:02:56]} {[%emt 00:01:08]} Kh7 {[%clk 00:21:06]} {[%emt 00:00:05]} 47. Rb8
{[%clk 00:03:08]} {[%emt 00:00:19]} 1-0